Cogmind - Beta 13 @@@ ROGUE MODE // 2024.04.14 @ 23:45:48 Player: Conlarando Result: Destroyed by as-42082 with Assembled Heavy Rifle Performance ------------- Evolutions (0) 0 Regions Visited (2) 400 Robots Destroyed (13) 65 Value Destroyed (276) 276 Prototype IDs (0) 0 Alien Tech Used (0) 0 Bonus (0) 0 TOTAL SCORE: 741 Bonus ------- None Cogmind --------- Core Integrity 0/250 Matter 277/300 Energy 83/100 System Corruption 10% Temperature Cool (0) Movement Core (50) Location -10/Mines Parts ------- > --- POWER (1) -------- (None) > --- PROPULSION (2) --- (None) > --- UTILITY (2) ------ Authchip [R/Combat] > --- WEAPON (2) ------- Small Laser > --- INVENTORY (5) ---- Small Storage Unit Huge Storage Unit Small Matter Pod (50) Hacking Suite Peak State ------------ > --- POWER ------------ Light Ion Engine > --- PROPULSION ------- Light Treads Light Treads > --- UTILITY ---------- Large Storage Unit Signal Interpreter > --- WEAPON ----------- Light Assault Rifle Light Assault Rifle > --- INVENTORY -------- Light Ion Engine Wheel Small Storage Unit Small Matter Pod Authchip [R/Combat] Small Laser Assault Rifle [Rating: 8] Favorites ----------- Power Light Ion Engine Engine Light Ion Engine Propulsion Light Treads Treads Light Treads Wheel Wheel Utility Signal Interpreter Storage Huge Storage Unit Processor Signal Interpreter Hackware Authchip [R/Combat] Weapon Light Assault Rifle Energy Gun Small Laser Ballistic Gun Light Assault Rifle Special Weapon Mining Laser Build | -11 -10 -10 ------- Run | Yrd Mat Min Slots Evolved . | . . . Power . | . . . Propulsion . | . . . Utility . | . . . Weapon . | . . . Parts Attached 18 | 6 7 5 Power 3 | 1 2 . Engine 3 | 1 2 . Core . | . . . Reactor . | . . . Propulsion 3 | 2 . 1 Treads 2 | 2 . . Leg . | . . . Wheel 1 | . . 1 Hover . | . . . Flight . | . . . Utility 6 | 1 4 1 Device . | . . . Storage 4 | 1 3 . Processor 1 | . 1 . Hackware 1 | . . 1 Protection . | . . . Artifact . | . . . Weapon 6 | 2 1 3 Energy Gun 1 | . . 1 Energy Cannon . | . . . Ballistic Gun 4 | 2 1 1 Ballistic Cannon . | . . . Launcher . | . . . Special Weapon 1 | . . 1 Impact Weapon . | . . . Slashing Weapon . | . . . Piercing Weapon . | . . . Special Melee Weapon . | . . . Unidentified Prototypes . | . . . Corrupted Parts 1 | . . 1 System Corruption 4 | . . 4 Parts Lost 9 | . 1 8 Power 2 | . 1 1 Propulsion 3 | . . 3 Utility . | . . . Weapon 4 | . . 4 Highest Loss Streak 6 | . 1 6 To Critical Strikes . | . . . Average Slot Usage (%) 93 | . 95 86 Engine 13 | . 13 10 Treads 27 | . 28 23 Storage 15 | . 16 11 Processor 8 | . 7 9 Ballistic Gun 27 | . 28 23 Naked Turns . | . . . Heaviest Build 85 | 11 85 85 Greatest Support 40 | 40 40 40 Greatest Overweight (x) 8 | . 2 8 Average Overweight (x) . | . . 1 Largest Inventory Capacity 25 | 8 25 25 Average Capacity 17 | 6 17 22 Most Carried 8 | 3 8 8 Average Carried 5 | 1 5 7 Final Capacity 25 | 8 25 5 Final Carried 7 | 3 7 4 Class Distribution -------------------- 100% | Mutant Dominant Class ---------------- Mutant | -10/Materials Mutant | -10/Mines Resources | -11 -10 -10 ----------- Run | Yrd Mat Min Matter Collected 510 | 239 243 28 Remotely . | . . . Salvage Created 553 | . 525 28 Parts 35 | . 35 . Haulers Intercepted . | . . . Recyclers Shooed 4 | . 4 . Parts Field Recycled . | . . . Retrieved Matter . | . . . Parts Self-Destructed . | . . . Prevented . | . . . Kills | -11 -10 -10 ------- Run | Yrd Mat Min Combat Hostiles Destroyed 10 | . 8 2 Guns 10 | . 8 2 Classes Destroyed 6 | . 5 1 Recycler 3 | . 3 . Operator 1 | . 1 . Watcher 1 | . 1 . Swarmer 3 | . 3 . Grunt 5 | . 5 . Assembled 2 | . . 2 Best Kill Streak 4 | . 4 2 Combat Bots Only 3 | . 3 2 Max Kills in Single Turn 2 | . 1 2 Gunslinging . | . . . Exploded . | . . . Melee . | . . . Uniques/NPCs Destroyed . | . . . Combat | -11 -10 -10 -------- Run | Yrd Mat Min Hostile Shots Fired 85 | . 55 30 Missed 22 | . 18 4 Damage Taken 1190 | . 376 814 Core 262 | . 111 151 Absorbed by Shields . | . . . Core Remaining (%) 100 | 100 . . Volleys Fired 66 | . 56 10 Largest 2 | . 2 2 Hottest 120 | . 40 120 Shots Fired 132 | . 112 20 Gun 130 | . 112 18 Cannon . | . . . Launcher . | . . . Special 2 | . . 2 Kinetic 126 | . 112 14 Thermal 6 | . . 6 Explosive . | . . . Electromagnetic . | . . . Robot Hit Streak 9 | . 9 5 Robot Miss Streak 4 | . 4 4 Penetration Max . | . . . Secondary Targets 1 | . 1 . Max Gunslinging Chain 1 | . 1 . Shots Hit Robots 87 | . 75 12 Core Hits 38 | . 31 7 Critical Kills . | . . . Critical Parts Destroyed 1 | . 1 . Critical Strikes 1 | . 1 . Destroy 1 | . 1 . Melee Attacks . | . . . Impact . | . . . Slashing . | . . . Piercing . | . . . Sneak Attacks . | . . . Combat Hostiles . | . . . Follow-up Attacks . | . . . Damage Inflicted 782 | . 631 151 Guns 782 | . 631 151 Cannons . | . . . Explosions . | . . . Melee . | . . . Ramming . | . . . Kinetic 761 | . 631 130 Thermal 21 | . . 21 Explosive . | . . . Electromagnetic . | . . . Impact . | . . . Slashing . | . . . Piercing . | . . . Highest Corruption 10 | . . 10 Average Corruption 6 | . . 6 Corruption Purged . | . . . Corruption Blocked . | . . . Effects 2 | . . 2 Message Errors 1 | . . 1 Matter Fused 1 | . . 1 Overload Shots . | . . . Overflow Damage . | . . . Projectiles . | . . . Explosions . | . . . Melee . | . . . Knockbacks . | . . . Impact . | . . . Kinetic . | . . . Secondary . | . . . Self-Inflicted Damage . | . . . Shots . | . . . Rammed . | . . . Targets Rammed . | . . . Kicked . | . . . Crushed . | . . . Highest Temperature 125 | . 22 125 Average Temperature 49 | . 9 74 Received Heat Transfer 355 | . 135 220 Siege Activations . | . . . Robots Corrupted . | . . . Combat Hostiles . | . . . Parts Fried . | . . . Impact Corruptions . | . . . Robots Melted . | . . . Combat Hostiles . | . . . Parts Melted . | . . . Heat Transferred 50 | . . 50 Parts Sabotaged . | . . . Parts Stolen . | . . . Parts Stripped . | . . . Power Chain Reactions . | . . . Alert | -11 -10 -10 ------- Run | Yrd Mat Min Peak Influence 112 | . 112 15 Initial 11 | . . 11 Average 24 | . 30 8 Maximum Alert Level . | . . . Low Security (%) 100 | 100 100 100 Level 1 . | . . . Level 2 . | . . . Level 3 . | . . . Level 4 . | . . . Level 5 . | . . . High Security . | . . . Max Security . | . . . Squads Dispatched 2 | . 2 . Investigation 1 | . 1 . Extermination . | . . . Reinforcement 1 | . 1 . Assault . | . . . Garrison . | . . . Intercept . | . . . Searches Triggered . | . . . Construction Impeded . | . . . Haulers Reinforced . | . . . Active Scanning Responses . | . . . Cargo Convoy Interrupts . | . . . Stealth | -11 -10 -10 --------- Run | Yrd Mat Min Distress Signals 3 | . 2 1 Communications Jammed . | . . . Distress Signals . | . . . Times Spotted 38 | . 23 15 Peak Tracking Total 8 | . 4 8 Tactical Retreats 2 | . 1 1 Traps | -11 -10 -10 ------- Run | Yrd Mat Min Traps Triggered 2 | . 2 . Indirectly . | . . . Trap Hack Attempts . | . . . Triggered . | . . . Disarmed . | . . . Reprogrammed . | . . . Reused . | . . . Traps Extracted . | . . . Installed . | . . . Triggered . | . . . Machines | -11 -10 -10 ---------- Run | Yrd Mat Min Machines Disabled . | . . . Max in Single Turn . | . . . Machines Repaired . | . . . Machines Dismantled . | . . . Machines Sabotaged . | . . . Overloaded Fab Kills . | . . . Hacking | -11 -10 -10 --------- Run | Yrd Mat Min Machines Accessed 2 | . 2 . Terminals 1 | . 1 . Fabricators . | . . . Repair Stations . | . . . Recycling Units 1 | . 1 . Scanalyzers . | . . . Garrison Access . | . . . Total Hacks 4 | . 4 . Successful 1 | . 1 . Failed 3 | . 3 . Catastrophic . | . . . Database Lockouts . | . . . Manual . | . . . Terminals 3 | . 3 . Fabricators . | . . . Repair Stations . | . . . Recycling Units 1 | . 1 . Scanalyzers . | . . . Garrison Access . | . . . Terminal Hacks . | . . . Fabricator Hacks . | . . . Repair Station Hacks . | . . . Recycling Unit Hacks 1 | . 1 . Retrieve Components 1 | . 1 . Scanalyzer . | . . . Garrison Access Hacks . | . . . Unauthorized Hacks . | . . . Terminals . | . . . Fabricators . | . . . Repair Stations . | . . . Recycling Units . | . . . Scanalyzers . | . . . Garrison Access . | . . . Data Cores Recovered . | . . . Used . | . . . Hacking Detections 1 | . 1 . Full Trace Events 1 | . 1 . Feedback Events . | . . . Feedback Blocked . | . . . Robot Schematics Acquired . | . . . Robots Built . | . . . Authchips . | . . . Time . | . . . Total Robot Build Rating . | . . . Part Schematics Acquired . | . . . Parts Built . | . . . Authchips . | . . . Time . | . . . Total Part Build Rating . | . . . Parts Repaired . | . . . Time . | . . . Parts Recycled . | . . . Recycled Matter . | . . . Retrieved Matter . | . . . Retrieved Components 4 | . 4 . Parts Scanalyzed . | . . . Part Schematics Acquired . | . . . Parts Damaged . | . . . Bothacking | -11 -10 -10 ------------ Run | Yrd Mat Min Used RIF Installer . | . . . Robots Hacked . | . . . Non-combat . | . . . Combat . | . . . Robot Hacks Applied . | . . . Relay Couplers Released . | . . . Fabnet Peak Effective % . | . . . Robots Rewired . | . . . Allies Hacked . | . . . Hacks Repelled . | . . . Allies | -11 -10 -10 -------- Run | Yrd Mat Min Total Allies 1 | . . 1 Largest Group 1 | . . 1 Highest-Rated Group 31 | . . 31 Highest-Rated Ally 31 | . . 31 Total Orders . | . . . Ally Attacks . | . . . Total Damage . | . . . Kills . | . . . Allies Corrupted . | . . . Allies Melted . | . . . Intel | -11 -10 -10 ------- Run | Yrd Mat Min Robot Analysis Total . | . . . Derelict Logs Recovered . | . . . Drone Launches . | . . . Drone Recoveries . | . . . Exploration | -11 -10 -10 ------------- Run | Yrd Mat Min Turns Passed 1959 | 91 1534 334 Spaces Moved 764 | 53 590 121 Core 48 | 4 . 44 Treads 713 | 49 590 74 Legs . | . . . Wheels 3 | . . 3 Hover . | . . . Flight . | . . . Fastest Speed 50 | 50 160 50 Average Speed 207 | 151 209 220 Slowest Speed 480 | 160 320 480 Overloaded Moves . | . . . Propulsion Burnouts . | . . . Robots Hopped . | . . . Cave-ins Triggered 1 | . . 1 Exploration Rate (%) 29 | 4 61 23 Regions Visited 2 Branch Regions 1 Pre-discovered Areas . | . . . Known Exits Taken 1 | . 1 . Unknown Exits Taken 1 | 1 . . Scrap Searched . | . . . Spaces Dug . | . . . Terrain Destroyed 1 | . . 1 Melee . | . . . Projectile 1 | . . 1 AOE . | . . . Terrain Rammed . | . . . Walls Destroyed . | . . . Machines Disabled . | . . . Actions | -11 -10 -10 --------- Run | Yrd Mat Min Total 1027 | 61 799 167 Wait 167 | . 139 28 Move 762 | 52 589 121 Hop . | . . . Pick Up 9 | 3 5 1 Fast Attach 9 | 6 3 . Attach 6 | . 1 5 Detach 1 | . . 1 Swap 3 | . 3 . Drop 4 | . 3 1 Fire 66 | . 56 10 Melee . | . . . Ram . | . . . Kick . | . . . Crush . | . . . Escape Stasis . | . . . Rewire . | . . . Trap . | . . . Miscellaneous . | . . . Route ------- -11/Scrapyard -10/Materials (discovered 2 exits: [*Mat] / *Min) -10/Mines History --------- Turn | Location | Event 13 | -11/Scrapyard | Discovered new exit (range 16) 92 | -11/Scrapyard | Entered Materials 302 | -10/Materials | Build established: Mutant 542 | -10/Materials | Discovered new exit (range 15) 755 | -10/Materials | Discovered new exit (range 15) 777 | -10/Materials | Identified exit to Mines 1626 | -10/Materials | Entered Mines 1658 | -10/Mines | Received a Mining Laser from a helpful Derelict 1833 | -10/Mines | Assembled infested the area 1869 | -10/Mines | Core integrity fell below 50% 1902 | -10/Mines | Crushed by falling debris 1909 | -10/Mines | Core integrity fell below 20% 1933 | -10/Mines | Lost 6 parts (1p2n3w) 1960 | -10/Mines | System corruption reached 10% 1960 | -10/Mines | Destroyed by as-42082 with Assembled Heavy Rifle Last Messages --------------- 01902_ Crushed by falling debris. 01902_ Mining Laser destroyed. 01902_ System corrupted by crushing effect (+4). 01902_ Wheel destroyed. 01902_ System corrupted by crushing effect (+2). 01909_ The unstable cave ceiling collapses. 01911_ System corrupted: Matter fused (-5). 01912_ as-06955 destroyed. 01912_ as-00481 destroyed. 01916_ Acquired 15 matter. 01916_ Acquired 13 matter. 01917_ The unstable cave ceiling collapses. 01932_ #D:7KCM ZG/8PAJ98UKT007 01945_ The unstable cave ceiling collapses. 01948_ R-06 Scavenger destroyed. 01951_ The unstable cave ceiling collapses. 01955_ Lgt. Treads destroyed. 01957_ Assault Rifle destroyed. 01959_ Integrated Corrupted Authchip [R/Combat] (+4). Map ----- +----------------------------------------------------+ | ?????????????????????????????????????????????????? | | ?????????????????????????????????????????????????? | | ?????????????????????????????????????????????????? | | ?????????????????????????????????????????????????? | | ?????????????????????????????????????????????????? | | ?????????????????????????????????????????????????? | | ?????????????????????????????????????????????????? | | ?????????????????????????????????????????????????? | | ?????????????????????????????????????????????????? | | ?????????????????????????????????????????????????? | | ???????????????? ????????????????????????????????? | | ?????????????? "???????????????????????????????? | | ????????????# ???????????????????????????????? | | ????????????# #??????????????????????????????? | | ????????????# a ##????????????????????????????? | | ????????????? #????????????????????????????? | | ????????????## #???????????????????????####?? | | ????????#!??# ####???????????????????## ##? | | ????????#%???# ggg#???????????????????# #? | | ????????#= ### ##?????????????????## #? | | ????????# # # # ##??????????????### #? | | ?? ????# # # ##????????????## #? | | ?? ???# # # ##???????????# #? | | ?? #?# aaa #??????????## #? | | ???? %"## aa #?????????## ##? | | ?????# =%!# # # a @ ##????????# ##?? | | ??????# *%=| # ## # a ##??????## ##??? | | ??????# =*%!! ## ####### #?????## ###???? | | ??????# *!% # ##?????## #????## #?????? | | ???????# % #????????# ##????# ##????? | | ????????# #?????????##?????# #????? | | ????????# ####?????????????# ######????? | | ????????# # # ##????????????# ##?????????? | | ????????# # ## ##???????????# #####???????? | | ????????##### ## #???????????# ## ##??????? | | ????????????## ## # ############# #??????? | | ????????????# #??????? | | ????????????# # ############## #??????? | | ????????????# ##### ##????????????## ##??????? | | ????????????### # # #??????????????######???????? | | ?????????????## ## ##???????????????????????????? | | | | | | | | | | | | | | | | | | | +----------------------------------------------------+ Best States ------------- Heat Dissipation 25 Energy Generation 10 Energy Capacity 125 Matter Stores 300 Matter Capacity 300 Sight Range 16 Terrain Scan Density 10 Evasion (%) 50 Recoil Reduction 2 Authchip Count 1 Item Schematics ----------------- None Robot Schematics ------------------ None Fabricated ------------ Nothing Alien Tech Used ----------------- None Achievements -------------- None Challenges ------------ None Game ------ Seed ThermoelectricUtilityPick Manual? 0 Play Time 00:10:52 Cumulative 7.3 hours Start 2024.04.14 @ 23:35:02 End 2024.04.14 @ 23:45:48 Sessions 1 Manual Loads 0 Difficulty Rogue Special Mode None Game No. 13 Rogue 13 Adventurer 0 Explorer 0 Win Type - Total 0 Types 0/0/0/0/0/0/0/0/0 Lore% 4 Gallery% 15 Achievement% 13 Wizard Run 0 Options --------- Layout 1 ASCII 0 Keyboard 0 Movement Mouse Keybinds 0 Fullscreen 1 Font 24/Terminus Map View 50x35 Zoom Use 0% Tactical HUD 1 Map Filters NONE Filters NONE Steam 1 RUN: 96cf9b0e-1996-4ad9-925f-acdfd53b4e19